Cogmind - Beta 14 @@@ ROGUE MODE // 2024.08.08 @ 23:50:42 Player: FauxMaasks Result: Destroyed by 4X-CSV(g) with Salvaging Laser Performance ------------- Evolutions (0) 0 Regions Visited (4) 800 Robots Destroyed (27) 135 Value Destroyed (573) 573 Prototype IDs (1) 20 Alien Tech Used (0) 0 Bonus (2000) 2000 TOTAL SCORE: 3528 Bonus ------- Delivered SUBCON Basin 2000 Cogmind --------- Core Integrity 0/250 Matter 295/300 Energy 100/100 System Corruption 0% Temperature Cool (6) Movement Rolling (135) Ox3 Location -8/Scraptown Parts ------- > --- POWER (1) -------- (None) > --- PROPULSION (2) --- Wheel Compact Wheel > --- UTILITY (2) ------ Huge Storage Unit > --- WEAPON (2) ------- Subdweller Laser > --- INVENTORY (25) --- Wheel Compact Wheel Propulsion Shielding Light Armor Plating Tech Extrapolator Medium Laser Beam Rifle Field Laser Light Assault Rifle Light Assault Rifle Light Cannon Light Cannon Improved Light Cannon Peak State ------------ > --- POWER ------------ Light Ion Engine > --- PROPULSION ------- Compact Wheel Subdweller Monowheel > --- UTILITY ---------- Huge Storage Unit > --- WEAPON ----------- Light Assault Rifle Light Cannon > --- INVENTORY -------- Wheel Wheel Compact Wheel Propulsion Shielding Light Armor Plating Medium Laser Light Assault Rifle Light Assault Rifle Light Cannon Grenade Launcher SUBCON Basin [Rating: 26] Favorites ----------- Power Light Ion Engine Engine Light Ion Engine Propulsion Compact Wheel Wheel Compact Wheel Utility Huge Storage Unit Device Seismic Detector Storage Huge Storage Unit Protection Propulsion Shielding Weapon Light Assault Rifle Energy Gun Subdweller Laser Ballistic Gun Light Assault Rifle Ballistic Cannon Light Cannon Launcher Grenade Launcher Build | -11 -10 -10 -8 -8 ------- Run | Yrd Mat Sub Rec Scr Slots Evolved . | . . . . . Power . | . . . . . Propulsion . | . . . . . Utility . | . . . . . Weapon . | . . . . . Parts Attached 34 | 7 7 18 1 1 Power 4 | 1 1 2 . . Engine 4 | 1 1 2 . . Core . | . . . . . Reactor . | . . . . . Propulsion 8 | 2 2 4 . . Treads . | . . . . . Leg . | . . . . . Wheel 8 | 2 2 4 . . Hover . | . . . . . Flight . | . . . . . Utility 5 | 2 1 2 . . Device 2 | 1 . 1 . . Storage 2 | 1 1 . . . Processor . | . . . . . Hackware . | . . . . . Protection 1 | . . 1 . . Artifact . | . . . . . Weapon 17 | 2 3 10 1 1 Energy Gun 3 | 1 . 2 . . Energy Cannon . | . . . . . Ballistic Gun 7 | 1 2 4 . . Ballistic Cannon 2 | . . 1 1 . Launcher 5 | . 1 3 . 1 Special Weapon . | . . . . . Impact Weapon . | . . . . . Slashing Weapon . | . . . . . Piercing Weapon . | . . . . . Special Melee Weapon . | . . . . . Unidentified Prototypes . | . . . . . Parts Lost 12 | . 3 7 . 2 Power 3 | . 1 1 . 1 Propulsion 3 | . 1 2 . . Utility 1 | . 1 . . . Weapon 5 | . . 4 . 1 Highest Loss Streak 5 | . 3 5 . 2 To Critical Strikes 2 | . . 1 . 1 Average Slot Usage (%) 86 | . 87 85 85 85 Engine 12 | . 11 12 14 14 Wheel 26 | . 26 24 28 28 Device 3 | . 5 4 . . Storage 14 | . 14 14 14 14 Energy Gun 8 | . 5 3 14 14 Ballistic Gun 11 | . 22 14 . . Ballistic Cannon 7 | . . 7 13 13 Peak Build Rating 26 | 7 8 26 26 9 Average Rating 11 | 4 6 18 25 8 On Entrance 9 | . 7 8 26 8 Naked Turns . | . . . . . Heaviest Build 91 | 12 87 91 90 90 Greatest Support 36 | 26 32 36 26 26 Greatest Overweight (x) 27 | . 5 27 3 3 Average Overweight (x) 2 | . 2 2 3 3 Largest Inventory Capacity 25 | 8 25 25 25 25 Average Capacity 23 | 7 23 25 25 25 Most Carried 25 | 3 21 25 25 13 Average Carried 14 | 1 9 22 24 12 Final Capacity 25 | 8 25 25 25 25 Final Carried 25 | 1 21 25 11 13 Class Distribution -------------------- 97% | Mutant Dominant Class ---------------- Mutant | -10/Materials Mutant | -10/Subcaves Mutant | -8/Recycling Mutant | -8/Scraptown Resources | -11 -10 -10 -8 -8 ----------- Run | Yrd Mat Sub Rec Scr Matter Collected 749 | 185 240 187 137 . Remotely . | . . . . . Salvage Created 702 | 17 366 266 53 . Parts 58 | 1 29 25 3 . Haulers Intercepted 1 | . 1 . . . Recyclers Shooed 1 | . 1 . . . Parts Field Recycled . | . . . . . Retrieved Matter . | . . . . . Parts Self-Destructed 15 | . . 15 . . Prevented . | . . . . . Kills | -11 -10 -10 -8 -8 ------- Run | Yrd Mat Sub Rec Scr Combat Hostiles Destroyed 22 | . 13 8 1 . Melee 1 | . . 1 . . Guns 13 | . 10 3 . . Cannons 1 | . . . 1 . AOE 7 | . 3 4 . . Classes Destroyed 9 | 1 6 1 1 . Worker 1 | . 1 . . . Tunneler 1 | 1 . . . . Hauler 1 | . 1 . . . Operator 1 | . 1 . . . Watcher 1 | . 1 . . . Swarmer 11 | . 9 2 . . Grunt 4 | . 4 . . . Sentry 1 | . . . 1 . Subdweller 6 | . . 6 . . Best Kill Streak 4 | 1 4 3 2 . Combat Bots Only 4 | . 4 3 2 . Max Kills in Single Turn 3 | 1 3 2 1 . Gunslinging . | . . . . . Exploded 3 | . 3 2 . . Melee 1 | . . 1 . . Uniques/NPCs Destroyed . | . . . . . Combat | -11 -10 -10 -8 -8 -------- Run | Yrd Mat Sub Rec Scr Hostile Shots Fired 106 | . 60 27 2 17 Missed 20 | . 10 7 . 3 Damage Taken 1251 | . 494 525 30 202 Core 252 | . 96 111 . 45 Absorbed by Shields . | . . . . . Core Remaining (%) 100 | 100 . . . . Volleys Fired 136 | 5 45 80 2 4 Largest 2 | 2 2 2 2 1 Hottest 95 | 70 70 60 95 60 Shots Fired 202 | 10 89 96 3 4 Gun 184 | 10 88 81 2 3 Cannon 6 | . . 5 1 . Launcher 12 | . 1 10 . 1 Special . | . . . . . Kinetic 131 | 5 75 50 1 . Thermal 59 | 5 13 36 2 3 Explosive 12 | . 1 10 . 1 Electromagnetic . | . . . . . Robot Hit Streak 28 | 4 14 28 2 . Robot Miss Streak 3 | 1 3 2 1 . Penetration Max . | . . . . . Secondary Targets . | . . . . . Shots Hit Robots 118 | 7 61 48 2 . Core Hits 58 | 2 29 25 1 1 Critical Kills 2 | . 1 1 . . Critical Parts Destroyed . | . . . . . Critical Strikes 5 | . 4 1 . . Burn 3 | . 3 . . . Destroy 2 | . 1 1 . . Melee Attacks . | . . . . . Impact . | . . . . . Slashing . | . . . . . Piercing . | . . . . . Sneak Attacks . | . . . . . Combat Hostiles . | . . . . . Follow-up Attacks . | . . . . . Damage Inflicted 1638 | 76 654 814 43 51 Guns 966 | 76 545 322 23 . Cannons 53 | . . 33 20 . Explosions 562 | . 109 430 . 23 Melee . | . . . . . Ramming 57 | . . 29 . 28 Kinetic 805 | 26 404 355 20 . Thermal 214 | 50 141 . 23 . Explosive 562 | . 109 430 . 23 Electromagnetic . | . . . . . Impact . | . . . . . Slashing . | . . . . . Piercing . | . . . . . Highest Corruption . | . . . . . Average Corruption . | . . . . . Corruption Purged . | . . . . . Corruption Blocked . | . . . . . Overload Shots . | . . . . . Overflow Damage . | . . . . . Projectiles . | . . . . . Explosions . | . . . . . Melee . | . . . . . Knockbacks . | . . . . . Impact . | . . . . . Kinetic . | . . . . . Secondary . | . . . . . Self-Inflicted Damage 73 | . 31 17 . 25 Shots 3 | . 1 1 . 1 Rammed 2 | . . 1 . 1 Targets Rammed 2 | . . 1 . 1 Kicked . | . . . . . Crushed . | . . . . . Highest Temperature 378 | 50 94 378 47 20 Average Temperature 69 | 25 38 205 21 15 Received Heat Transfer 772 | . 114 613 27 18 Effects 1 | . . 1 . . Shutdowns 1 | . . 1 . . Siege Activations . | . . . . . Robots Corrupted . | . . . . . Combat Hostiles . | . . . . . Parts Fried . | . . . . . Impact Corruptions . | . . . . . Robots Melted . | . . . . . Combat Hostiles . | . . . . . Parts Melted 1 | 1 . . . . Heat Transferred 802 | 148 629 . 25 . Parts Sabotaged . | . . . . . Parts Stolen . | . . . . . Parts Stripped . | . . . . . Power Chain Reactions . | . . . . . Alert | -11 -10 -10 -8 -8 ------- Run | Yrd Mat Sub Rec Scr Peak Influence 212 | 5 212 . 98 . Initial 40 | . 3 . 40 . Average 85 | . 94 . 67 . Maximum Alert Level 1 | . 1 . . . Low Security (%) 98 | 100 98 . 100 . Level 1 1 | . 1 . . . Level 2 . | . . . . . Level 3 . | . . . . . Level 4 . | . . . . . Level 5 . | . . . . . High Security . | . . . . . Max Security . | . . . . . Squads Dispatched 3 | . 3 . . . Investigation 2 | . 2 . . . Extermination . | . . . . . Reinforcement 1 | . 1 . . . Assault . | . . . . . Garrison . | . . . . . Intercept . | . . . . . Searches Triggered . | . . . . . Construction Impeded . | . . . . . Haulers Reinforced . | . . . . . Active Scanning Responses . | . . . . . Cargo Convoy Interrupts . | . . . . . Stealth | -11 -10 -10 -8 -8 --------- Run | Yrd Mat Sub Rec Scr Distress Signals 2 | . 2 . . . Communications Jammed . | . . . . . Distress Signals . | . . . . . Times Spotted 48 | . 24 15 3 6 Peak Tracking Total 7 | . 5 5 2 7 Tactical Retreats 6 | . 3 2 1 . Traps | -11 -10 -10 -8 -8 ------- Run | Yrd Mat Sub Rec Scr Traps Triggered 3 | . 2 1 . . Indirectly . | . . . . . Trap Hack Attempts . | . . . . . Triggered . | . . . . . Disarmed . | . . . . . Reprogrammed . | . . . . . Reused . | . . . . . Traps Extracted . | . . . . . Installed . | . . . . . Triggered . | . . . . . Machines | -11 -10 -10 -8 -8 ---------- Run | Yrd Mat Sub Rec Scr Machines Disabled 5 | . . 2 . 3 Max in Single Turn 2 | . . 2 . 2 Machines Repaired . | . . . . . Machines Dismantled . | . . . . . Machines Sabotaged . | . . . . . Overloaded Fab Kills . | . . . . . Hacking | -11 -10 -10 -8 -8 --------- Run | Yrd Mat Sub Rec Scr Machines Accessed 14 | . 7 2 1 4 Terminals 8 | . 7 . 1 . Fabricators . | . . . . . Repair Stations . | . . . . . Recycling Units . | . . . . . Scanalyzers . | . . . . . Garrison Access . | . . . . . Total Hacks 53 | . 16 3 3 31 Successful 45 | . 9 3 2 31 Failed 8 | . 7 . 1 . Catastrophic 1 | . 1 . . . Database Lockouts . | . . . . . Manual 13 | . 10 . 3 . Terminals 19 | . 16 . 3 . Fabricators . | . . . . . Repair Stations . | . . . . . Recycling Units . | . . . . . Scanalyzers . | . . . . . Garrison Access . | . . . . . Terminal Hacks 41 | . 7 3 . 31 Record 34 | . 2 1 . 31 Robot Analysis 3 | . 3 . . . Open Door 1 | . . 1 . . Locate Traps 1 | . 1 . . . Maintenance Status 1 | . 1 . . . Release Object 1 | . . 1 . . Fabricator Hacks . | . . . . . Repair Station Hacks . | . . . . . Recycling Unit Hacks . | . . . . . Scanalyzer . | . . . . . Garrison Access Hacks . | . . . . . Unauthorized Hacks 4 | . 2 . 2 . Terminals 4 | . 2 . 2 . Track 1 | . . . 1 . Botnet 3 | . 2 . 1 . Fabricators . | . . . . . Repair Stations . | . . . . . Recycling Units . | . . . . . Scanalyzers . | . . . . . Garrison Access . | . . . . . Data Cores Recovered 1 | . 1 . . . Used . | . . . . . Hacking Detections 6 | . 5 . 1 . Full Trace Events . | . . . . . Feedback Events . | . . . . . Feedback Blocked . | . . . . . Robot Schematics Acquired . | . . . . . Robots Built . | . . . . . Authchips . | . . . . . Time . | . . . . . Total Robot Build Rating . | . . . . . Part Schematics Acquired 1 | . . . . 1 Parts Built . | . . . . . Authchips . | . . . . . Time . | . . . . . Total Part Build Rating . | . . . . . Parts Repaired . | . . . . . Time . | . . . . . Parts Recycled . | . . . . . Recycled Matter . | . . . . . Retrieved Matter . | . . . . . Retrieved Components . | . . . . . Parts Scanalyzed . | . . . . . Part Schematics Acquired . | . . . . . Parts Damaged . | . . . . . Bothacking | -11 -10 -10 -8 -8 ------------ Run | Yrd Mat Sub Rec Scr Used RIF Installer . | . . . . . Robots Hacked . | . . . . . Non-combat . | . . . . . Combat . | . . . . . Robot Hacks Applied . | . . . . . Relay Couplers Released . | . . . . . Fabnet Peak Effective % . | . . . . . Robots Rewired . | . . . . . Allies Hacked . | . . . . . Hacks Repelled . | . . . . . Allies | -11 -10 -10 -8 -8 -------- Run | Yrd Mat Sub Rec Scr Total Allies . | . . . . . Largest Group . | . . . . . Highest-Rated Group . | . . . . . Highest-Rated Ally . | . . . . . Total Orders . | . . . . . Ally Attacks . | . . . . . Total Damage . | . . . . . Kills . | . . . . . Allies Corrupted . | . . . . . Allies Melted . | . . . . . Intel | -11 -10 -10 -8 -8 ------- Run | Yrd Mat Sub Rec Scr Robot Analysis Total 3 | . 3 . . . Derelict Logs Recovered . | . . . . . Drone Launches . | . . . . . Drone Recoveries . | . . . . . Exploration | -11 -10 -10 -8 -8 ------------- Run | Yrd Mat Sub Rec Scr Turns Passed 3824 | 69 1351 837 332 1235 Spaces Moved 2448 | 49 868 445 236 850 Core 4 | 1 . 3 . . Treads . | . . . . . Legs . | . . . . . Wheels 2444 | 48 868 442 236 850 Hover . | . . . . . Flight . | . . . . . Fastest Speed 50 | 50 90 129 135 135 Average Speed 133 | 88 130 140 135 135 Slowest Speed 1400 | 90 175 1400 135 135 Overloaded Moves . | . . . . . Propulsion Burnouts . | . . . . . Robots Hopped . | . . . . . Cave-ins Triggered . | . . . . . Exploration Rate (%) 46 | 4 99 27 43 60 Regions Visited 4 Branch Regions 3 Pre-discovered Areas 1 | . . 1 . . Known Exits Taken . | . . . . . Unknown Exits Taken 4 | 1 1 1 1 . Scrap Searched 3 | . . . . 3 Spaces Dug 38 | . 9 29 . . Terrain Destroyed 110 | . 9 95 . 6 Melee . | . . . . . Projectile 21 | . . 21 . . AOE 89 | . 9 74 . 6 Terrain Rammed . | . . . . . Walls Destroyed . | . . . . . Machines Disabled . | . . . . . Actions | -11 -10 -10 -8 -8 --------- Run | Yrd Mat Sub Rec Scr Total 2823 | 63 1013 567 247 933 Wait 158 | . 74 4 5 75 Move 2445 | 48 867 445 235 850 Hop . | . . . . . Pick Up 31 | 3 19 5 2 2 Fast Attach 12 | 5 3 4 . . Attach 8 | 2 . 6 . . Detach . | . . . . . Swap 14 | . 4 8 1 1 Drop 16 | . 1 13 2 . Fire 136 | 5 45 80 2 4 Melee . | . . . . . Ram 1 | . . . . 1 Kick . | . . . . . Crush . | . . . . . Escape Stasis . | . . . . . Rewire 2 | . . 2 . . Trap . | . . . . . Miscellaneous . | . . . . . Route ------- -11/Scrapyard -10/Materials (discovered 5 exits: [*Mat x3] / [*Min] / *Sub) -10/Subcaves -8/Recycling -8/Scraptown (discovered 1 exit: [*Fac]) History --------- Turn | Location | Event 22 | -11/Scrapyard | Discovered new exit (range 16) 70 | -11/Scrapyard | Entered Materials 260 | -10/Materials | Discovered new exit (range 8) 308 | -10/Materials | Build established: Mutant 404 | -10/Materials | Discovered new exit (range 5) 680 | -10/Materials | Lost 3 parts (1p1n1u) 1106 | -10/Materials | Discovered new exit (range 11) 1309 | -10/Materials | Discovered new exit (range 6) 1387 | -10/Materials | Discovered new exit (range 9) 1421 | -10/Materials | Entered Subcaves 1423 | -10/Subcaves | Shifting Twisted Machinery released Sub. Power Source 1430 | -10/Subcaves | Shifting Twisted Machinery released Sub. Power Source 1507 | -10/Subcaves | Learned location of Zion (-7) 1507 | -10/Subcaves | Met a Zionite searching for "candidates" 1616 | -10/Subcaves | Lost 5 parts (1p2n2w) 1670 | -10/Subcaves | A swath of the cavern ceiling suddenly collapsed 1683 | -10/Subcaves | Core integrity fell below 50% 1695 | -10/Subcaves | Core integrity fell below 20% 1794 | -10/Subcaves | Found SUBCON Basin 2214 | -10/Subcaves | Ambushed by Subdweller buried in earth 2216 | -10/Subcaves | Ambushed by Subdweller buried in earth 2252 | -10/Subcaves | Discovered new exit (range 5) 2258 | -10/Subcaves | Entered Recycling 2394 | -8/Recycling | Scanned before Scraplab entrance 2562 | -8/Recycling | Entered Scraplab 2588 | -8/Recycling | Discovered new exit (range 3) 2590 | -8/Recycling | Entered Scraptown 2720 | -8/Scraptown | Heard Great Nut preacher, LISTEN AND RECITE! 2974 | -8/Scraptown | Discovered new exit (range 11) 3107 | -8/Scraptown | Visited SPCMW 3172 | -8/Scraptown | Visited The Evicted 3196 | -8/Scraptown | Visited Fellowship of the Rings 3346 | -8/Scraptown | Visited Cyclists 3370 | -8/Scraptown | Visited Symbiants 3616 | -8/Scraptown | Visited Cave Peace 3667 | -8/Scraptown | Visited IN-MT5's Study 3797 | -8/Scraptown | Attacked by Scraptown defenders 3825 | -8/Scraptown | Destroyed by 4X-CSV(g) with Salvaging Laser Last Messages --------------- research and preparation. We need to treat MC to a good old peasant uprising. What better way to disrupt 0b10 operations than to enlist the help of the little guys who are already all over the place? I've got just the thing... 03694_ LOCAL NARROWCAST: Specimen 142. 03771_ IN-MT5: "Overhelming numbers could provide quite an effective positive reinforcement loop..." 03797_ ANNOUNCEMENT: Intruder alert! Defend Scraptown! 03797_ Machine disabled. 03797_ Enclosure breached. 03804_ Extracted schematic archive: IN-MT5's Pitchfork "Insurrection". 03808_ Machine disabled. 03819_ Bolt penetrates Machine. 03822_ Penetrated by Bolt. 03822_ Critical hit (Destroy). 03822_ Grenade Launcher destroyed. 03824_ Lgt. Ion Engine destroyed. 03824_ Slammed into V5-Z13(h). Map ----- +----------------------------------------------------+ | | | | | | | | | | | | | | | | | | | ?????????????????????????????????????????????????? | | #####???????????????########?????????????????????? | | """"#???????????????#"" ##???????????????????? | | "#???????????????#" < #?################### | | "" "#????########???#"" #?#"""""""""#""""""""" | | "" "#???#"""""""#???##### #?#" "#" " | | "" "#???#"" ""#???????# #?#" """ " | | "#???#"" ""#???????# #?#" "#" "" " | | """###?#""" ""#???????# #?#" """ "#" " " | | #?#"" ""#??????## ###" "#" " | | ###""" """######## ##"""""" ""#"" """""" | | | | | | | | ###### ########### ##########"" """"#### | | ###### ######????##Ehg##????????#" !%"#??? | | #""""" """""#####?#@ #########?#" !!""#??? | | #" " " #?# """"""""#?#" """#??? | | """ ""#" " " "### ### " ""#?#" """#??? | | """ "#" " " "#"" """ "#?#"""""""#??? | | """ "#""""" """""#" """ E" ""#?#########??? | | "" "###### ######" " c"""" """#????????????? | | ? "#""""" """""#" r##"" #####???????????? | | ?"" ""#" " " "#" "" " r##### #####???????? | | ?## ###" " " "#" " #??## """"#?####### | | ??# " " "#"""""" #??# " "#?# | | ??#####""""" """""####### #??## "#?# "" "" | | #?????###### ######?????# #??# " ""#?# ""X"" | | ############ ############ #??# " """#?# """"" | | #??# " ""#?# """ | | #??# " "#?# " | | ######################### #??#""" "#?# | | #??????????????????????# #??# #?# | | #######???????????????### ########## ########### | | """"""#???????????????# | | "#?????########### | | !*/ "#????## ## | | ] "#????# """""" # | | = / "#????# "" "" # | | [! "#????# " " # ################# | | ] "#????# " " # #???????????????# | +----------------------------------------------------+ Best States ------------- Heat Dissipation 25 Energy Generation 15 Energy Capacity 250 Matter Stores 300 Matter Capacity 300 Sight Range 21 Terrain Scan Density 10 Propulsion Shielding 33 Evasion (%) 42 Item Schematics ----------------- IN-MT5's Pitchfork "Insurrection" | -8/Scraptown | Archive Robot Schematics ------------------ None Fabricated ------------ Nothing Alien Tech Used ----------------- None Achievements -------------- None Challenges ------------ None Game ------ Seed NuclearDefenseUnit Manual? 0 Play Time 00:36:44 Cumulative 125.6 hours Start 2024.08.08 @ 22:08:06 End 2024.08.08 @ 23:50:42 Sessions 11 Manual Loads 0 Difficulty Rogue Special Mode None Game No. 34 Rogue 15 Adventurer 17 Explorer 2 Win Type - Total 3 Types 2/0/1/0/0/0/0/0/0 Lore% 45 Gallery% 58 Achievement% 57 Wizard Run 0 Options --------- Layout 2 ASCII 0 Keyboard 1 Movement Vi Keybinds 0 Fullscreen 0 Font 20/SmallcapsGlow Map View 64x51 Zoom Use 0% Tactical HUD 1 Map Filters NONE Filters NONE Steam 1 RUN: af05b4f7-5807-4c70-957b-097409128c94